bitfinex/quotes_ETHUSD_20250824
["timestamp","ask_amount","ask_price","bid_price","bid_amount"]
[1756057444392,9.06770876,4931.1,4931.0,16.05760843]
[1756057444591,9.06770876,4931.1,4931.0,3.0]
[1756057446348,9.06770876,4931.1,4931.0,14.782742]
[1756057446651,9.06770876,4931.1,4931.0,3.0]
[1756057446816,9.06770876,4931.1,4931.0,9.718569]
[1756057447149,9.06770876,4931.1,4931.0,3.0]
[1756057448151,1.39008552,4931.1,4931.0,8.441]
[1756057448319,0.02,4932.8,4931.1,3.0]
[1756057448510,0.02,4932.8,4932.4,13.89860843]
[1756057449508,0.02,4932.8,4932.4,3.0]
[1756057449724,0.02,4932.8,4932.4,3.15167504]
[1756057449921,0.02,4932.8,4932.4,3.0]
[1756057450564,10.5692101,4932.5,4932.4,3.0]
[1756057450709,10.1010101,4932.5,4932.4,3.0]
[1756057450909,10.5692101,4932.5,4932.4,3.0]
[1756057451856,10.1010101,4932.5,4932.4,3.0]
[1756057452336,10.1010101,4932.5,4932.4,8.361]
[1756057452539,10.1010101,4932.5,4932.4,3.0]
[1756057454623,2.42338686,4932.5,4932.4,23.42801902]
[1756057454857,2.42338686,4932.5,4932.4,13.89860843]
[1756057454858,2.11893085,4932.5,4932.4,13.89860843]
[1756057455056,2.11893085,4932.5,4932.4,36.41862902]
[1756057455260,2.11893085,4932.5,4932.4,15.43407]
[1756057455420,2.11893085,4932.5,4932.4,20.77307]
[1756057456042,2.11893085,4932.5,4932.4,7.627203]
[1756057456247,2.11893085,4932.5,4931.5,10.89860843]
[1756057456415,2.11893085,4932.5,4931.6,2.012277]
[1756057456612,2.11893085,4932.5,4930.8,1.578]
[1756057456815,2.11893085,4932.5,4931.0,5.159]
[1756057457049,2.11893085,4932.5,4931.2,2.159]
[1756057457217,2.11893085,4932.5,4931.4,5.159]
[1756057457218,7.44493085,4932.5,4931.4,5.159]
[1756057457419,7.44493085,4932.5,4931.6,2.159]
[1756057457619,2.11893085,4932.5,4931.6,2.159]
[1756057457814,2.11893085,4932.5,4931.8,5.159]
[1756057458034,2.11893085,4932.5,4932.1,2.159]
[1756057458235,2.11893085,4932.5,4932.3,3.0]
[1756057458446,2.11893085,4932.5,4932.2,2.159]
[1756057458864,0.4682,4932.4,4931.6,5.159]
[1756057459027,2.11893085,4932.5,4931.6,5.159]
[1756057459531,2.11893085,4932.5,4931.8,2.159]
[1756057459715,2.11893085,4932.5,4932.0,5.159]
[1756057459922,2.11893085,4932.5,4932.2,5.159]
[1756057460148,2.11893085,4932.5,4932.2,2.159]
[1756057460729,0.4682,4932.4,4930.8,0.02]
[1756057461143,2.11893085,4932.5,4931.7,10.89860843]
[1756057461347,2.11893085,4932.5,4932.0,2.0275684]
[1756057461546,2.11893085,4932.5,4932.2,3.0]
[1756057461851,2.11893085,4932.5,4932.4,2.159]
[1756057462741,2.11893085,4932.5,4932.1,5.159]
[1756057462938,2.11893085,4932.5,4932.4,6.383]
[1756057463242,2.11893085,4932.5,4932.4,21.141411]
[1756057463579,2.11893085,4932.5,4932.4,10.326]
[1756057463580,2.08493085,4932.5,4932.4,10.326]
[1756057463876,2.08493085,4932.5,4932.4,9.098545]
[1756057464021,2.08493085,4932.5,4932.4,15.91403159]
[1756057464222,0.02,4932.8,4932.4,15.91403159]
[1756057464223,74.86840491,4932.7,4932.5,3.0]
[1756057464463,74.86840491,4932.7,4932.6,21.29406938]
[1756057464620,67.67123364,4932.7,4932.6,26.14376138]
[1756057464955,43.45000149,4932.7,4932.6,38.51192838]
[1756057465156,39.03095974,4932.7,4932.6,43.76292838]
[1756057465356,18.63217292,4932.7,4932.6,43.97255628]
[1756057465520,12.73500165,4932.7,4932.6,43.97255628]
[1756057465855,9.84053122,4933.9,4933.7,3.383]
[1756057466055,9.84053122,4933.9,4933.8,53.14508272]
[1756057466263,10.5357101,4936.6,4933.8,53.14508272]
[1756057466264,9.99653122,4935.3,4935.2,2.02626033]
[1756057466418,9.99653122,4935.3,4935.2,37.45697456]
[1756057466753,2.39998718,4935.3,4935.2,36.10039646]
[1756057466952,0.3716694,4935.3,4935.2,41.93471043]
[1756057467152,0.3716694,4935.3,4935.2,31.22259467]
[1756057467153,0.06719052,4935.3,4935.2,31.22259467]
[1756057467358,57.06017412,4936.0,4935.9,1.224]
[1756057467545,10.1010101,4936.6,4935.9,1.224]
[1756057467546,10.1010101,4936.6,4936.5,3.24972672]
[1756057467761,6.04703588,4936.6,4936.5,5.33393266]
[1756057468070,5.35699892,4936.6,4936.5,21.58098633]
[1756057468253,5.05252004,4936.6,4936.5,10.736182]
[1756057468482,5.05252004,4936.6,4936.5,13.98354665]
[1756057468644,5.05252004,4936.6,4936.5,7.78281865]
[1756057468850,5.05252004,4936.6,4936.5,0.15246165]
[1756057469044,5.05252004,4936.6,4933.9,20.0]
[1756057469045,5.48722004,4936.6,4934.6,5.29]
[1756057469275,5.7237,4936.5,4934.7,2.869122]
[1756057469571,5.7267,4936.4,4934.3,5.292]
[1756057469727,5.292,4936.3,4934.4,5.292]
[1756057469932,0.4347,4936.3,4934.4,9.65136294]
[1756057470176,5.292,4936.2,4934.5,12.102399]
[1756057470332,0.4347,4936.1,4932.9,10.89860843]
[1756057470856,0.4347,4936.1,4932.5,0.16243606]
[1756057470857,5.292,4936.0,4932.5,0.01014]
[1756057471063,6.8587,4935.9,4932.5,0.01014]
[1756057471243,5.3017,4935.9,4932.5,0.01014]
[1756057471433,5.3017,4935.9,4932.6,8.021972]
[1756057471434,7.2767,4935.8,4932.6,8.021972]
[1756057471632,0.4347,4935.7,4932.7,3.94015]
[1756057471831,0.4347,4935.7,4932.6,6.019759]
[1756057471832,5.285,4935.6,4932.6,6.019759]
[1756057472070,0.4347,4935.5,4932.7,5.282]
[1756057472289,5.7167,4935.5,4932.5,0.01014]
[1756057472572,0.4347,4935.4,4934.8,0.02]
[1756057472872,0.4347,4935.4,4932.8,0.02]
[1756057472873,0.66,4935.3,4932.8,0.02]
[1756057473092,10.89860843,4934.7,4929.9,0.10589946]
[1756057473266,0.66,4933.5,4929.9,0.10589946]
[1756057473581,1.557,4934.4,4928.4,0.001]
[1756057473582,0.66,4932.8,4928.4,0.001]
[1756057473878,1.9917,4932.7,4928.6,10.89860843]
[1756057474046,0.4347,4932.6,4928.7,5.292]
[1756057474248,0.4347,4932.6,4928.4,0.001]
[1756057474471,0.66,4932.5,4928.4,0.001]
[1756057474785,5.3017,4932.4,4928.4,0.001]
[1756057475137,5.7277,4932.3,4928.9,3.07861]
[1756057475337,5.7217,4932.2,4929.2,10.89860843]
[1756057475538,5.7207,4932.1,4929.4,3.0]
[1756057475779,5.7207,4932.1,4929.6,3.0]
[1756057475996,0.4347,4933.1,4932.1,2.238288]
[1756057476177,0.4347,4933.1,4931.6,3.0]
[1756057476345,0.4347,4933.1,4931.4,3.0]
[1756057476541,0.4347,4933.1,4931.2,1.557]
[1756057476769,0.4347,4933.1,4931.1,3.0]
[1756057476936,5.276,4933.0,4931.3,3.0]
[1756057477135,0.4347,4932.9,4929.7,12.45560843]
[1756057477378,0.4347,4932.9,4932.8,0.1016]
[1756057478084,0.4347,4932.9,4932.8,0.02]
[1756057478290,0.4347,4932.9,4930.8,0.02]
[1756057479193,5.258,4932.8,4930.8,0.02]
[1756057479335,0.4347,4932.7,4930.8,0.02]
[1756057479765,0.4347,4932.7,4928.4,0.001]
[1756057479939,0.66,4932.6,4928.4,0.001]
[1756057480147,1.9927,4932.5,4928.4,0.001]
[1756057480372,1.9927,4932.5,4928.9,5.277176]
[1756057480373,0.4347,4932.4,4928.9,5.277176]
[1756057480573,0.4347,4932.4,4929.0,6.697699]
[1756057480775,0.4347,4932.4,4928.9,13.873291]
[1756057480974,0.4347,4932.4,4929.0,5.02879541]
[1756057481186,5.244,4932.3,4929.2,3.0]
[1756057481390,5.6807,4932.2,4929.4,3.0]
[1756057481681,0.4347,4932.4,4930.9,3.0]
[1756057481842,0.4347,4932.4,4931.0,2.704996]
[1756057482047,5.252,4932.3,4929.8,0.001]
[1756057482545,0.4347,4932.2,4929.8,0.001]
[1756057482740,0.4347,4932.2,4930.8,0.001]
[1756057483245,0.4347,4932.2,4929.8,0.001]
[1756057483448,0.4347,4932.2,4928.8,0.021]
[1756057483659,2.09,4932.1,4928.8,0.021]
[1756057483891,0.66,4931.9,4928.8,0.021]
[1756057484091,0.66,4931.7,4928.8,0.021]
[1756057484291,0.66,4931.3,4927.9,0.001]
[1756057484463,0.66,4931.1,4927.9,0.001]
[1756057484795,6.659,4931.0,4930.8,0.02]
[1756057484967,1.43,4930.9,4930.8,0.02]
[1756057485315,0.4347,4930.9,4930.8,0.02]
[1756057487127,4.869,4932.7,4930.8,0.02]
[1756057487128,1.558,4931.1,4930.8,0.02]
[1756057487283,0.10151212,4933.0,4931.1,3.697369]
[1756057487482,0.10151212,4933.0,4931.4,3.0]
[1756057487879,5.209,4933.6,4930.8,0.02]
[1756057487880,0.4347,4932.9,4930.8,0.02]
[1756057488305,0.4347,4932.9,4932.8,0.1016]
[1756057488505,0.4347,4932.9,4930.8,0.02]
[1756057488909,0.4347,4932.9,4932.8,0.1016]
[1756057489436,1.9927,4933.9,4930.8,0.02]
[1756057489587,1.9927,4933.9,4931.6,10.89860843]
[1756057489786,1.9927,4933.9,4931.7,5.406]
[1756057490031,0.10148204,4934.4,4932.6,3.0]
[1756057490318,0.10148204,4934.4,4932.0,2.159]
[1756057490319,0.10148204,4934.4,4933.0,3.0]
[1756057490529,0.10148204,4934.4,4932.9,10.89860843]
[1756057490530,0.10148204,4934.4,4933.9,3.0]
[1756057490687,5.203,4935.4,4933.9,3.0]
[1756057491089,1.558,4936.2,4934.8,3.0]
[1756057491299,6.754,4936.2,4934.8,3.0]
[1756057491789,1.558,4936.2,4934.8,3.0]
[1756057492223,1.558,4936.2,4933.9,3.0]
[1756057492427,5.05252004,4936.6,4933.9,3.0]
[1756057492727,5.05252004,4936.6,4935.1,3.0]
[1756057492929,5.05252004,4936.6,4935.3,3.0]
[1756057493092,5.05252004,4936.6,4935.1,3.0]
[1756057493443,5.05252004,4936.6,4934.1,11.04897123]
[1756057493444,5.209,4935.8,4934.2,3.0]
[1756057493721,6.767,4935.8,4934.2,3.0]
[1756057493890,6.767,4935.8,4933.3,3.0]
[1756057494090,6.767,4935.8,4933.4,5.700232]
[1756057494393,0.4684,4935.7,4933.2,10.89860843]
[1756057494924,0.4684,4935.7,4931.9,10.89860843]
[1756057495088,0.4684,4935.7,4932.0,3.092376]
[1756057495436,0.4684,4935.7,4931.8,2.077069]
[1756057495819,0.4684,4935.7,4931.7,10.89860843]
[1756057496117,0.4684,4935.7,4931.8,2.047069]
[1756057496313,5.161,4935.6,4931.8,2.406569]
[1756057496529,0.4684,4935.5,4932.0,3.0]
[1756057496832,0.4684,4935.5,4932.2,3.0]
[1756057497129,0.4684,4935.5,4932.1,16.320995]
[1756057497130,0.4684,4935.5,4931.9,3.0]
[1756057497331,0.4684,4935.5,4931.8,3.3595]
[1756057497627,0.4684,4935.5,4931.7,10.89716908]
[1756057497827,0.4684,4935.5,4931.8,2.28212284]
[1756057498028,0.4684,4935.5,4931.6,3.0]
[1756057498238,0.4684,4935.5,4931.5,10.89860843]
[1756057498609,5.137,4935.4,4931.6,8.042734]
[1756057498809,5.134,4935.3,4932.5,3.0]
[1756057499142,5.134,4935.3,4932.7,3.0]
[1756057499442,5.134,4935.3,4932.8,2.06]
[1756057499617,0.4684,4935.5,4935.3,0.1016]
[1756057499809,5.5944,4935.4,4935.2,0.1016]
[1756057500209,5.5944,4935.4,4932.6,0.3595]
[1756057500210,0.4684,4935.3,4931.6,0.3595]
[1756057500410,0.4684,4935.3,4931.7,2.308]
[1756057500622,5.123,4935.2,4931.7,5.308]
[1756057500833,5.5874,4935.1,4931.6,0.3595]
[1756057501007,5.5874,4935.1,4931.8,3.0]
[1756057501209,5.5874,4935.1,4931.6,0.3595]
[1756057501210,5.5874,4935.1,4932.0,3.0]
[1756057501517,0.4684,4935.0,4932.2,3.0]
[1756057501824,0.4684,4935.0,4932.4,3.0]
[1756057502027,0.4684,4935.0,4932.6,3.0]
[1756057502244,0.4684,4935.0,4932.1,10.89860843]
[1756057502245,0.4684,4935.0,4932.2,3.0]
[1756057502905,0.4684,4935.0,4931.8,0.0223]
[1756057502906,5.105,4934.9,4931.8,0.0223]
[1756057503106,0.4684,4934.8,4931.8,0.0223]
[1756057503629,0.66,4934.7,4929.7,10.89860843]
[1756057503938,0.4684,4934.8,4928.7,0.3595]
[1756057503939,0.66,4934.3,4928.7,0.3595]
[1756057504139,0.66,4933.8,4928.5,0.15517709]
[1756057504339,3.66,4933.6,4928.3,0.001]
[1756057504547,0.66,4932.1,4928.3,0.001]
[1756057504878,1.558,4932.2,4928.3,0.001]
[1756057504879,0.66,4931.9,4928.3,0.001]
[1756057505058,11.55860843,4931.9,4928.3,0.001]
[1756057505207,3.66,4931.7,4928.3,0.001]
[1756057505412,1.558,4930.8,4928.3,0.001]
[1756057505709,11.55860843,4930.1,4926.8,0.02]
[1756057505935,5.084,4930.0,4926.8,0.02]
[1756057506139,0.66,4929.9,4926.8,0.02]
[1756057506347,0.66,4929.7,4926.8,0.02]
[1756057506645,0.66,4929.5,4926.8,0.02]
[1756057506846,0.66,4929.3,4926.8,0.02]
[1756057507210,6.98225663,4929.4,4926.8,0.02]
[1756057507211,0.66,4929.1,4926.8,0.02]
[1756057507416,0.66,4928.9,4926.8,0.02]
[1756057507619,0.66,4928.2,4926.8,0.02]
[1756057507836,11.55860843,4928.0,4923.8,0.021]
[1756057508045,22.218,4927.9,4923.8,0.021]
[1756057508246,0.5,4927.6,4923.8,0.021]
[1756057508446,0.5,4927.2,4923.8,0.021]
[1756057508658,5.3374,4927.1,4923.8,0.021]
[1756057508860,5.07,4927.0,4923.8,0.021]
[1756057509048,5.5384,4927.0,4923.8,0.021]
[1756057509376,5.5384,4927.0,4922.3,0.22454301]
[1756057509377,10.89860843,4924.5,4922.3,0.22454301]
[1756057509669,10.79466228,4924.4,4922.3,0.03928479]
[1756057509851,0.5,4924.1,4922.3,0.03928479]
[1756057510029,0.78066228,4924.0,4922.0,0.001]
[1756057510233,0.66,4923.4,4922.0,0.001]
[1756057510432,1.558,4923.3,4922.0,0.001]
[1756057510675,5.149,4923.2,4922.0,0.001]
[1756057510840,1.558,4923.1,4922.0,0.001]
[1756057511042,5.144,4923.0,4922.0,0.001]
[1756057511231,5.144,4923.0,4920.6,3.0]
[1756057511433,5.144,4923.0,4920.1,0.10618926]
[1756057511644,0.4684,4922.9,4918.0,1.6639403]
[1756057511844,0.4684,4922.9,4918.7,0.10622221]
[1756057511845,0.66,4922.8,4918.7,0.10622221]
[1756057512137,0.66,4922.8,4918.0,0.1059403]
[1756057512393,0.66,4922.6,4917.8,0.02]
[1756057512573,0.4684,4922.5,4917.8,0.02]
[1756057512893,0.4684,4922.5,4918.7,10.89860843]
[1756057513032,0.4684,4922.5,4919.8,0.021]
[1756057513033,5.145,4922.4,4919.8,0.021]
[1756057513229,0.4684,4922.3,4919.8,0.021]
[1756057513451,4.874,4922.2,4919.8,0.021]
[1756057513672,0.4684,4922.1,4919.8,0.021]
[1756057513874,0.66,4922.0,4919.8,0.021]
[1756057514307,0.66,4921.8,4919.8,0.021]
[1756057514463,0.66,4921.6,4919.8,0.021]
[1756057514664,5.137,4921.5,4919.8,0.021]
[1756057514859,0.4684,4921.5,4919.8,0.021]
[1756057515168,0.4684,4921.4,4919.8,0.021]
[1756057515391,5.128,4921.3,4919.8,0.021]
[1756057515574,0.66,4921.2,4919.8,0.021]
[1756057515782,0.4684,4921.2,4919.8,0.021]
[1756057516077,5.13,4921.1,4920.0,0.49904]
[1756057516283,5.5984,4921.0,4920.0,0.49904]
[1756057516597,0.4684,4920.9,4920.0,0.49904]
[1756057516796,0.4684,4920.9,4920.0,0.02404]
[1756057517183,0.66,4920.8,4920.0,0.02504]
[1756057517562,0.66,4920.6,4920.0,0.02504]
[1756057518064,0.66,4920.4,4920.0,0.02504]
[1756057518396,1.56,4920.3,4920.0,0.02504]
[1756057518760,1.561,4921.4,4920.1,0.4716]
[1756057519201,1.88,4922.3,4920.3,3.0]
[1756057519404,0.4684,4924.6,4920.7,0.66]
[1756057519565,1.561,4924.1,4920.9,3.66]
[1756057519919,1.561,4924.1,4920.8,3.168668]
[1756057519920,1.561,4924.1,4921.7,0.66]
[1756057520104,1.561,4924.1,4921.9,3.0]
[1756057520267,1.561,4924.1,4924.0,0.1016]
[1756057520474,1.561,4924.1,4922.1,3.0]
[1756057520475,1.561,4924.1,4922.1,0.66]
[1756057520712,4.879,4925.1,4922.3,10.89860843]
[1756057521013,6.625,4925.5,4922.6,0.66]
[1756057521210,6.625,4925.5,4923.3,3.0]
[1756057521511,6.625,4925.5,4923.4,0.4716]
[1756057522173,6.625,4925.5,4923.5,0.66]
[1756057522374,5.131,4926.8,4923.6,12.300878]
[1756057522575,5.131,4926.8,4924.4,10.89860843]
[1756057522817,5.131,4926.8,4924.5,3.0]
[1756057523014,5.131,4926.8,4923.7,0.4416]
[1756057523227,5.131,4926.8,4923.8,0.66]
[1756057523409,5.105,4926.0,4923.7,0.4416]
[1756057523818,5.105,4926.0,4922.8,0.4416]
[1756057523819,4.9,4925.8,4922.8,0.4416]
[1756057524053,0.4419,4925.7,4922.9,30.0]
[1756057524208,0.4419,4925.7,4922.8,0.4416]
[1756057524408,5.097,4925.6,4922.8,0.4416]
[1756057524649,1.561,4925.5,4922.8,0.4416]
[1756057525853,0.4419,4925.4,4921.9,0.4416]
[1756057526007,0.4419,4925.4,4922.1,3.0]
[1756057526215,5.076,4925.3,4922.1,3.0]
[1756057526524,5.076,4925.2,4922.2,3.172241]
[1756057526717,5.076,4925.2,4922.4,3.0]
[1756057526922,5.076,4925.2,4922.3,3.4416]
[1756057527119,0.4419,4925.4,4922.3,0.4416]
[1756057527474,5.063,4925.3,4922.3,0.4416]
[1756057527770,0.4419,4925.4,4922.3,0.4416]
[1756057527932,5.06,4925.3,4922.3,0.4416]
[1756057528587,1.561,4925.5,4923.0,3.66]
[1756057528758,0.02,4925.8,4923.9,3.66]
[1756057528965,0.02,4925.8,4924.0,0.4416]
[1756057530465,5.05,4925.8,4925.7,0.1016]
[1756057530983,5.05,4925.8,4922.9,10.89860843]
[1756057530984,5.4919,4925.8,4922.5,0.4416]
[1756057531144,5.4919,4925.8,4919.8,4.9]
[1756057531145,0.4419,4925.7,4921.6,0.4416]
[1756057531337,0.4419,4925.7,4921.7,0.12]
[1756057532140,0.66,4925.6,4921.7,0.12]
[1756057532365,5.3209,4925.5,4921.7,0.12]
[1756057532563,5.023,4925.4,4922.0,10.89860843]
[1756057532766,5.023,4925.4,4922.1,3.4416]
[1756057532938,2.0029,4925.3,4922.1,0.4416]
[1756057533139,0.4419,4925.2,4922.1,0.4416]
[1756057533491,0.4419,4925.2,4921.7,0.12]
[1756057533680,0.4419,4925.2,4922.0,0.4416]
[1756057534185,5.014,4925.1,4922.0,0.4416]
[1756057534769,5.014,4925.1,4922.2,3.0]
[1756057534985,5.014,4925.1,4922.4,3.0]
[1756057535194,5.014,4925.1,4922.3,0.4416]
[1756057535477,0.4419,4925.2,4922.5,3.0]
[1756057535775,5.001,4925.0,4922.6,0.4416]
[1756057535975,0.4419,4925.2,4922.6,0.4416]
[1756057536209,4.986,4925.1,4922.8,3.0]
[1756057536377,4.986,4925.1,4923.0,3.0]
[1756057536548,4.986,4925.1,4922.6,10.89860843]
[1756057536549,4.986,4925.1,4923.2,3.0]
[1756057536869,4.986,4925.1,4923.1,0.4416]
[1756057537073,4.986,4925.1,4923.3,3.0]
[1756057537276,1.561,4925.3,4923.4,0.4416]
[1756057537665,1.561,4925.3,4923.6,3.0]
[1756057538576,1.561,4925.3,4923.8,3.0]
[1756057538782,0.001,4925.7,4924.6,3.0]
[1756057538981,0.001,4925.7,4924.8,3.0]
[1756057539176,0.001,4925.7,4924.7,0.4416]
[1756057540947,0.001,4925.7,4925.6,0.1016]
[1756057541177,1.562,4925.7,4925.6,0.1016]
[1756057541396,2.0039,4925.7,4925.6,0.1016]
[1756057542896,6.9249,4925.7,4925.6,0.1016]
[1756057543112,6.9249,4925.7,4925.5,0.1016]
[1756057543266,0.4419,4925.6,4921.6,0.4416]
[1756057543466,4.922,4925.5,4925.4,0.1016]
[1756057543708,5.3639,4925.5,4925.4,0.1016]
[1756057543873,0.4419,4925.5,4925.4,0.1016]
[1756057544164,5.3639,4925.5,4925.4,0.1016]
[1756057544368,5.3639,4925.5,4925.1,0.1016]
[1756057544680,5.3639,4925.5,4922.3,0.4416]
[1756057544681,0.4419,4925.4,4925.3,0.1016]
[1756057544874,5.3549,4925.4,4925.3,0.1016]
[1756057545663,5.3459,4925.4,4925.3,0.1016]
[1756057546774,5.3459,4925.4,4922.3,0.4416]
[1756057546966,0.4419,4925.3,4922.3,0.4416]
[1756057547580,4.885,4925.2,4922.3,0.4416]
[1756057548596,0.4419,4925.1,4922.3,0.4416]
[1756057548900,0.4419,4925.1,4921.8,0.4416]
[1756057549311,0.18958161,4925.0,4921.8,0.4416]
[1756057549510,0.18958161,4924.9,4921.8,0.4416]
[1756057549671,0.4419,4924.9,4921.8,0.4416]
[1756057550085,0.4419,4924.9,4921.8,0.6458]
[1756057550321,0.4419,4924.9,4921.8,0.4416]
[1756057551634,0.18950446,4924.8,4921.8,0.4416]
[1756057551799,0.18950446,4924.7,4921.8,0.4416]
[1756057552003,0.18950446,4924.6,4921.8,0.4416]
[1756057552224,0.4702,4924.5,4921.8,0.4416]
[1756057552915,0.4702,4924.5,4921.6,0.001]
[1756057552916,0.84946813,4924.4,4921.6,0.001]
[1756057553114,0.66,4924.2,4921.6,0.001]
[1756057553427,0.66,4924.0,4921.6,0.001]
[1756057553632,5.53766813,4924.1,4921.6,0.001]
[1756057553633,0.66,4923.8,4921.6,0.001]
[1756057553787,0.66,4923.6,4921.6,0.001]
[1756057553993,0.66,4923.4,4921.6,0.001]
[1756057554192,0.66,4923.2,4921.6,0.001]
[1756057554412,0.1892393,4923.1,4921.6,0.001]
[1756057554622,1.1302,4923.0,4921.6,0.001]
[1756057554822,4.825,4923.9,4921.6,0.001]
[1756057554988,5.2952,4923.9,4921.6,0.001]
[1756057555188,0.4702,4923.8,4921.6,0.001]
[1756057556124,0.4702,4923.8,4921.6,0.4496]
[1756057557025,0.4702,4923.8,4923.7,0.1016]
[1756057557524,4.825,4923.9,4923.7,0.09180947]
[1756057557729,0.4702,4923.8,4923.7,0.09180947]
[1756057558529,4.825,4923.9,4923.7,0.09180947]
[1756057558754,4.825,4923.9,4921.7,3.12]
[1756057558755,4.878,4924.1,4922.8,0.4486]
[1756057558935,4.816,4923.8,4922.8,0.4486]
[1756057559097,4.816,4923.8,4923.7,0.1016]
[1756057560092,4.816,4923.8,4923.7,0.5502]
[1756057560596,5.2862,4923.8,4923.7,0.1016]
[1756057561423,5.3878,4923.8,4922.7,0.001]
[1756057561624,0.4702,4923.7,4923.1,0.1016]
[1756057562042,0.4702,4923.7,4922.7,0.001]
[1756057562341,0.1016,4923.5,4922.8,0.1016]
[1756057562560,4.816,4923.8,4922.7,0.001]
[1756057562561,5.3502,4923.4,4922.7,0.001]
[1756057562693,5.4518,4923.4,4923.2,0.001]
[1756057563011,0.4702,4923.3,4923.2,0.001]
[1756057564498,1.1302,4923.3,4923.2,0.001]
[1756057564741,1.2318,4923.3,4923.2,0.001]
[1756057565047,1.1302,4923.3,4923.2,0.001]
[1756057565250,1.2318,4923.3,4923.2,0.001]
[1756057565625,31.2318,4923.3,4923.2,0.001]
[1756057565827,34.2318,4923.3,4923.2,0.001]
[1756057566075,3.66,4923.2,4922.7,0.001]
[1756057566359,3.66,4923.2,4921.6,0.001]
[1756057566360,2.137,4922.4,4921.7,0.0105045]
[1756057566513,0.7616,4921.8,4921.7,0.0105045]
[1756057566951,1.2318,4921.8,4921.7,0.0105045]
[1756057567410,4.2318,4921.8,4921.7,0.0105045]
[1756057567610,34.2318,4921.8,4921.7,0.0105045]
[1756057567947,6.19877803,4921.8,4921.7,0.0105045]
[1756057568245,39.19877803,4921.8,4921.7,0.0105045]
[1756057568779,0.4702,4921.8,4921.7,0.0105045]
[1756057568910,5.3858,4921.8,4921.7,0.0105045]
[1756057569115,4.814,4921.8,4921.7,0.0105045]
[1756057570250,4.814,4921.8,4921.7,0.4591045]
[1756057570455,4.814,4921.8,4921.7,0.5607045]
[1756057570634,4.814,4921.8,4921.7,0.1121045]
[1756057571350,1.561,4922.8,4921.7,0.1121045]
[1756057571548,4.814,4922.7,4921.7,0.5607045]
[1756057571847,4.814,4922.7,4921.7,0.4591045]
[1756057572026,4.814,4922.7,4922.6,0.1016]
[1756057572637,4.814,4922.7,4921.7,0.0105045]
[1756057573120,4.814,4922.7,4922.6,0.1016]
[1756057574725,4.814,4922.7,4922.6,0.5502]
[1756057575729,1.561,4922.8,4922.6,0.5502]
[1756057576067,0.02,4923.8,4922.6,0.5502]
[1756057576240,4.813,4923.7,4922.6,0.5502]
[1756057576441,4.813,4923.7,4922.6,0.4486]
[1756057576641,4.813,4923.7,4923.6,0.1016]
[1756057576962,4.813,4923.7,4923.6,0.5502]
[1756057577525,0.02,4923.8,4923.6,0.5502]
[1756057578327,0.02,4923.8,4923.7,0.1016]
[1756057578826,0.02,4923.8,4923.7,0.5502]
[1756057580553,0.02,4923.8,4923.7,0.1016]
[1756057581345,0.02,4923.8,4922.6,0.4486]
[1756057581770,0.02,4923.8,4922.9,10.89860843]
[1756057581954,0.02,4923.8,4923.0,0.4295]
[1756057582154,0.02,4923.8,4923.0,3.4295]
[1756057582560,0.02,4923.8,4923.0,3.0]
[1756057582744,0.02,4923.8,4923.1,0.4295]
[1756057583344,0.02,4923.8,4923.3,3.0]
[1756057583581,0.02,4923.8,4923.1,0.4295]
[1756057583757,0.02,4923.8,4923.3,3.4295]
[1756057583957,0.02,4923.8,4923.3,0.4295]
[1756057584194,0.02,4923.8,4923.6,0.001]
[1756057584493,0.02,4923.8,4923.7,0.4295]
[1756057585160,0.022,4923.8,4923.7,0.4295]
[1756057588190,0.022,4923.8,4923.6,0.001]
[1756057588694,0.4533,4923.7,4923.6,0.001]
[1756057588896,0.022,4923.8,4923.6,0.001]
[1756057589107,0.4533,4923.7,4923.6,0.001]
[1756057589778,0.022,4923.8,4923.6,0.001]
[1756057591403,0.022,4923.8,4923.7,0.1016]
[1756057591763,0.022,4923.8,4923.7,0.5311]
[1756057592283,0.022,4923.8,4923.7,0.1016]
[1756057592483,0.022,4923.8,4923.7,0.5311]
[1756057594263,0.022,4923.8,4923.7,0.1016]
[1756057594462,0.022,4923.8,4923.7,0.5311]
[1756057595764,0.022,4923.8,4923.7,0.0466]
[1756057596802,0.022,4923.8,4923.6,0.001]
[1756057596961,0.022,4923.8,4923.7,0.1016]
[1756057598671,4.815,4923.8,4923.7,0.1016]
[1756057598871,6.376,4923.8,4923.7,0.1016]
[1756057599201,6.8293,4923.8,4923.7,0.1016]
[1756057601591,6.376,4923.8,4923.7,0.1016]
[1756057601803,0.022,4923.8,4923.7,12.23975854]
[1756057601985,0.022,4923.8,4923.7,15.23975854]
[1756057602385,0.022,4923.8,4923.7,14.81025854]
[1756057602796,0.022,4923.8,4923.7,15.23975854]